bitfinex/quotes_SOLUSD_20220306
["timestamp","ask_amount","ask_price","bid_price","bid_amount"]
[1646541622266,46.9376,88.365,88.271,55.73213682]
[1646541623066,46.9376,88.365,88.29,16.9848]
[1646541623266,46.9376,88.365,88.291,48.7441428]
[1646541623666,45.4376,88.365,88.291,48.7441428]
[1646541624670,45.4376,88.365,88.291,56.3841428]
[1646541625276,2.0075218,88.388,88.3,16.9846]
[1646541625679,3.08953702,88.413,88.311,49.81739204]
[1646541625879,47.0661,88.419,88.311,58.29739204]
[1646541626077,47.0661,88.419,88.312,2.83613526]
[1646541626479,47.0661,88.419,88.312,48.21013046]
[1646541626678,47.0661,88.419,88.314,4.91548936]
[1646541626877,22.5777,88.454,88.33,16.9719]
[1646541627079,5.657,88.453,88.34,13.62]
[1646541627577,3.08953702,88.475,88.341,59.27314674]
[1646541627778,2.00489586,88.467,88.36,16.9651]
[1646541627978,24.4514,88.466,88.361,48.12267236]
[1646541628178,16.9766,88.46,88.361,48.12267236]
[1646541628478,5.655,88.459,88.34,13.62]
[1646541628678,6.19131755,88.458,88.33,13.62]
[1646541628896,3.08953702,88.454,88.33,11.62]
[1646541629101,13.62,88.45,88.33,11.62]
[1646541629300,14.93685457,88.449,88.33,11.62]
[1646541629498,3.08953702,88.447,88.331,46.29401523]
[1646541629701,3.08953702,88.446,88.331,46.29401523]
[1646541629900,5.656,88.445,88.331,46.29401523]
[1646541630102,5.656,88.445,88.291,47.7361]
[1646541630103,73.06227079,88.429,88.291,47.7361]
[1646541630298,68.67,88.427,88.27,13.62]
[1646541630500,16.9929,88.39,88.264,0.64865258]
[1646541630799,78.1225,88.389,88.264,3.48478784]
[1646541631098,78.1225,88.389,88.265,50.80132256]
[1646541631299,72.4625,88.389,88.281,4.28426371]
[1646541631498,1.9965265,88.426,88.282,58.05162023]
[1646541631700,5.659,88.446,88.286,114.5]
[1646541631899,1.9965265,88.453,88.301,114.5]
[1646541632098,5.657,88.452,88.305,114.5]
[1646541632300,5.657,88.452,88.321,5.31600731]
[1646541632500,72.4625,88.457,88.324,114.5]
[1646541632698,72.4625,88.457,88.325,5.656]
[1646541632897,72.4625,88.457,88.341,4.26665208]
[1646541633102,22.30466491,88.476,88.343,63.95120315]
[1646541633298,22.30466491,88.491,88.361,4.59511716]
[1646541633598,0.28475639,88.492,88.371,4.39930695]
[1646541633800,5.654,88.491,88.372,5.654]
[1646541633998,5.654,88.491,88.373,62.43728175]
[1646541634203,0.28475639,88.492,88.374,5.654]
[1646541634500,22.30466491,88.49,88.374,5.654]
[1646541634699,5.654,88.489,88.375,0.83467867]
[1646541634899,0.28475639,88.492,88.38,13.62]
[1646541635099,5.652,88.491,88.38,13.62]
[1646541635501,5.652,88.491,88.381,3.67081393]
[1646541635701,5.652,88.491,88.38,13.62]
[1646541635900,114.5,88.489,88.38,13.62]
[1646541636101,5.652,88.488,88.373,62.43728175]
[1646541636303,7.6485265,88.488,88.373,62.43728175]
[1646541636506,1.9965265,88.488,88.381,2.83613526]
[1646541636706,0.28475639,88.492,88.39,13.62]
[1646541637103,5.653,88.491,88.391,47.93756561]
[1646541637305,0.28475639,88.492,88.392,5.652]
[1646541637506,0.28475639,88.492,88.393,4.73557418]
[1646541637707,0.28475639,88.492,88.394,62.512]
[1646541637905,0.28475639,88.492,88.397,114.5]
[1646541638105,0.28475639,88.492,88.411,5.47974591]
[1646541638304,0.28475639,88.492,88.43,16.9541]
[1646541638506,0.28475639,88.492,88.44,13.62]
[1646541638706,0.28475639,88.492,88.441,6.48567867]
[1646541638906,0.00475639,88.492,88.441,6.48567867]
[1646541639106,0.00475639,88.492,88.442,34.71779943]
[1646541639312,0.00475639,88.492,88.451,4.65166582]
[1646541639507,5.651,88.605,88.461,5.7415886]
[1646541639907,5.647,88.623,88.471,5.66045973]
[1646541640106,5.647,88.623,88.481,4.12415381]
[1646541640305,5.646,88.624,88.482,5.646]
[1646541640504,5.646,88.624,88.483,54.80395115]
[1646541640705,5.646,88.624,88.5,16.9371]
[1646541640907,5.646,88.624,88.51,13.62]
[1646541641106,49.8469,88.625,88.511,5.644]
[1646541641304,1.99619991,88.623,88.51,13.62]
[1646541641507,0.5737041,88.621,88.512,0.86304943]
[1646541641706,5.644,88.62,88.512,0.86304943]
[1646541641909,114.5,88.619,88.512,0.86304943]
[1646541642105,114.5,88.619,88.481,5.644]
[1646541642106,6.614,88.618,88.481,5.644]
[1646541642406,114.5,88.617,88.45,13.62]
[1646541642605,114.5,88.617,88.445,5.646]
[1646541642606,5.647,88.616,88.46,13.62]
[1646541642806,114.5,88.615,88.461,5.647]
[1646541643007,114.5,88.589,88.461,63.70399468]
[1646541643210,114.5,88.587,88.461,63.70399468]
[1646541643406,4.21663155,88.585,88.461,58.05699468]
[1646541643609,114.5,88.579,88.461,58.05699468]
[1646541643806,5.648,88.578,88.462,5.648]
[1646541644008,16.9562,88.57,88.461,58.05699468]
[1646541644207,28.1577,88.569,88.462,5.648]
[1646541644508,30.15389991,88.569,88.462,5.648]
[1646541644705,1.99619991,88.568,88.462,5.648]
[1646541644906,5.648,88.567,88.462,5.648]
[1646541645306,1.99619991,88.566,88.462,5.648]
[1646541645907,22.5097,88.569,88.463,3.69918469]
[1646541646107,22.5097,88.569,88.465,0.86304943]
[1646541646307,5.648,88.616,88.481,4.07764114]
[1646541646507,114.5,88.628,88.51,16.9356]
[1646541646708,5.646,88.627,88.52,13.62]
[1646541646907,24.6734,88.597,88.521,69.22984407]
[1646541647109,24.6734,88.597,88.521,63.58384407]
[1646541647309,114.5,88.596,88.521,63.58384407]
[1646541647508,114.5,88.587,88.521,63.58384407]
[1646541647708,114.5,88.579,88.521,63.58384407]
[1646541647912,5.646,88.578,88.521,63.58384407]
[1646541648110,5.646,88.578,88.45,13.62]
[1646541648310,114.5,88.576,88.451,5.648]
[1646541648509,5.648,88.575,88.436,5.648]
[1646541648709,114.5,88.574,88.435,5.649]
[1646541648909,119.55244127,88.559,88.432,5.649]
[1646541649108,114.5,88.547,88.436,54.39130121]
[1646541649310,114.5,88.545,88.436,54.39130121]
[1646541649507,114.5,88.543,88.436,54.39130121]
[1646541649710,49.9055,88.546,88.436,54.39130121]
[1646541649711,4.76250839,88.528,88.436,54.39130121]
[1646541649910,5.32398008,88.518,88.404,0.86304943]
[1646541650108,114.5,88.516,88.361,5.65]
[1646541650308,5.652,88.515,88.351,5.652]
[1646541650510,114.5,88.514,88.369,25.84033948]
[1646541650709,114.5,88.509,88.37,5.652]
[1646541650910,4.18570562,88.508,88.381,48.62506084]
[1646541651109,5.652,88.507,88.382,5.652]
[1646541651310,68.67,88.506,88.382,5.652]
[1646541651509,68.67,88.484,88.382,5.652]
[1646541651709,233.0755,88.484,88.382,5.652]
[1646541651909,118.5755,88.484,88.382,5.652]
[1646541652111,49.9055,88.484,88.382,5.652]
[1646541652611,16.974,88.48,88.382,5.652]
[1646541652809,5.654,88.479,88.382,5.652]
[1646541653010,120.154,88.479,88.381,48.62506084]
[1646541653213,5.654,88.479,88.381,48.62506084]
[1646541653411,49.9055,88.484,88.382,5.654]
[1646541653911,120.152,88.483,88.382,5.654]
[1646541654110,120.152,88.483,88.381,48.62506084]
[1646541655811,16.9737,88.48,88.381,48.62506084]
[1646541656013,188.824,88.479,88.381,48.62506084]
[1646541656412,1.99514118,88.478,88.381,48.62506084]
[1646541656615,5.654,88.477,88.381,48.62506084]
[1646541656812,120.154,88.477,88.381,48.62506084]
[1646541657015,5.654,88.477,88.381,48.62506084]
[1646541657212,5.654,88.479,88.381,48.62506084]
[1646541657816,13.62,88.48,88.382,5.654]
[1646541658014,114.5,88.479,88.382,5.654]
[1646541658214,5.654,88.478,88.382,5.654]
[1646541658814,5.654,88.479,88.382,5.654]
[1646541659016,13.62,88.48,88.382,13.864]
[1646541659214,13.62,88.48,88.39,16.9663]
[1646541659414,13.62,88.5,88.39,16.9663]
[1646541659614,5.652,88.512,88.39,16.9663]
[1646541659813,22.9058,88.515,88.39,16.9663]
[1646541659814,22.9058,88.515,88.392,0.86304943]
[1646541660220,22.9058,88.515,88.421,59.92457564]
[1646541660413,114.5,88.514,88.421,59.92457564]
[1646541660615,4.19507212,88.512,88.421,59.92457564]
[1646541660815,5.651,88.511,88.421,59.92457564]
[1646541661013,114.5,88.514,88.421,59.92457564]
[1646541661215,16.967,88.51,88.421,59.92457564]
[1646541661415,114.5,88.509,88.421,59.92457564]
[1646541661716,5.25726479,88.502,88.421,59.92457564]
[1646541662114,114.5,88.495,88.421,59.92457564]
[1646541662315,114.5,88.485,88.421,59.92457564]
[1646541662518,183.17,88.481,88.421,59.92457564]
[1646541662719,41.34646394,88.478,88.421,59.92457564]
[1646541662920,183.17,88.477,88.382,5.654]
[1646541663117,183.17,88.475,88.382,5.654]
[1646541663419,5.54933619,88.458,88.382,5.654]
[1646541663622,5.14721714,88.448,88.315,147.0771]
[1646541663818,183.17,88.439,88.383,63.00392851]
[1646541664418,5.655,88.438,88.383,63.00392851]
[1646541664619,183.17,88.436,88.316,2.83613526]
[1646541664819,5.657,88.435,88.315,147.0771]
[1646541665019,183.17,88.434,88.315,147.0771]
[1646541665226,5.657,88.433,88.315,147.0771]
[1646541665419,16.9843,88.42,88.315,147.0771]
[1646541665619,139.0277,88.419,88.316,63.51084462]
[1646541666021,5.94440199,88.414,88.316,63.51084462]
[1646541666223,5.658,88.413,88.316,63.51084462]
[1646541666422,114.5,88.409,88.316,63.51084462]
[1646541666622,16.9892,88.39,88.316,63.51084462]
[1646541666823,24.1192,88.39,88.316,63.51084462]
[1646541667029,114.5,88.389,88.316,63.51084462]
[1646541667223,114.5,88.384,88.316,63.51084462]
[1646541667423,4.14253774,88.382,88.316,63.51084462]
[1646541667624,114.5,88.379,88.316,63.51084462]
[1646541667826,5.659,88.378,88.316,63.51084462]
[1646541668226,43.50216835,88.387,88.26,16.9932]
[1646541668227,5.659,88.379,88.26,16.9932]
[1646541668424,5.66,88.385,88.251,45.1137]
[1646541668624,4.17187249,88.368,88.251,45.1137]
[1646541668824,114.5,88.359,88.251,45.1137]
[1646541669226,114.5,88.356,88.252,51.08017391]
[1646541669823,5.662,88.355,88.252,51.08017391]
[1646541670224,17.0003,88.34,88.252,51.08017391]
[1646541670427,114.5,88.339,88.252,51.08017391]
[1646541670623,26.5203,88.34,88.252,51.08017391]
[1646541670825,46.6029,88.354,88.253,2.83613526]
[1646541671225,5.662,88.353,88.253,24.93145205]
[1646541671425,5.662,88.353,88.26,16.9929]
[1646541671628,46.6029,88.354,88.26,16.9929]
[1646541671826,46.6029,88.354,88.254,2.83613526]
[1646541672027,55.8229,88.354,88.254,2.83613526]
[1646541672425,5.662,88.353,88.26,16.9939]
[1646541672826,5.662,88.353,88.261,2.83613526]
[1646541673030,114.5,88.353,88.261,2.83613526]
[1646541673226,114.5,88.353,88.252,51.08017391]
[1646541673427,5.662,88.352,88.252,51.08017391]
[1646541673629,5.662,88.353,88.253,2.83613526]
[1646541673828,46.6029,88.354,88.253,2.83613526]
[1646541674028,5.662,88.378,88.254,0.48647239]
[1646541674228,47.906,88.377,88.254,45.475462]
[1646541674429,47.906,88.377,88.255,2.83613526]
[1646541674628,47.906,88.377,88.26,16.9935]
[1646541674828,47.906,88.377,88.27,13.62]
[1646541675028,114.5,88.376,88.27,13.62]
[1646541675428,5.66,88.375,88.271,2.83613526]
[1646541675631,5.66,88.375,88.261,47.7079]
[1646541675632,114.5,88.369,88.272,53.59058378]
[1646541675828,5.66,88.368,88.272,53.59058378]
[1646541676029,68.67,88.366,88.272,53.59058378]
[1646541676229,128.20444128,88.352,88.272,53.59058378]
[1646541676436,114.5,88.34,88.272,53.59058378]
[1646541677329,114.5,88.351,88.272,53.59058378]
[1646541677530,114.5,88.369,88.272,53.59058378]
[1646541678133,5.66,88.368,88.273,59.69613526]
[1646541678333,114.5,88.369,88.273,66.14613526]
[1646541678530,114.5,88.376,88.274,2.83613526]
[1646541678930,114.5,88.376,88.275,56.86]
[1646541679134,114.5,88.381,88.28,30.6098]
[1646541679332,5.66,88.425,88.281,114.5]
[1646541679532,5.659,88.433,88.283,114.5]
[1646541679732,1.98195044,88.431,88.283,114.5]
[1646541679932,5.658,88.43,88.283,114.5]
[1646541680133,5.658,88.43,88.286,56.86]
[1646541680335,5.658,88.43,88.284,28.67647474]
[1646541680336,114.5,88.428,88.301,56.86]
[1646541680533,5.658,88.427,88.311,56.86]
[1646541680735,114.5,88.428,88.313,56.86]
[1646541681133,114.5,88.428,88.32,16.9762]
[1646541681338,114.5,88.428,88.32,30.5962]
[1646541681534,114.5,88.428,88.32,37.0162]
[1646541681734,48.0565,88.429,88.321,3.42383785]
[1646541682135,48.0565,88.429,88.322,2.83613526]
[1646541682334,164.13576645,88.428,88.322,2.83613526]
[1646541682536,164.13576645,88.428,88.323,22.5553]
[1646541682735,5.657,88.427,88.323,22.5553]
[1646541684139,5.657,88.427,88.33,16.9803]
[1646541684341,5.657,88.427,88.331,46.11958307]
[1646541685155,114.5,88.428,88.332,2.83613526]
[1646541685557,114.5,88.428,88.34,16.9786]
[1646541685759,48.0565,88.429,88.34,16.9786]
[1646541686256,48.0565,88.429,88.331,46.11958307]
[1646541686257,15.06762789,88.427,88.331,46.11958307]
[1646541686457,188.827,88.426,88.331,46.11958307]
[1646541686661,1.52849081,88.423,88.331,46.11958307]
[1646541686857,183.17,88.419,88.331,46.11958307]
[1646541687057,114.5,88.407,88.331,46.11958307]
[1646541687260,5.658,88.406,88.331,46.11958307]
[1646541687457,68.67,88.402,88.331,46.11958307]
[1646541687656,188.828,88.401,88.323,22.5553]
[1646541687857,188.828,88.401,88.27,56.6224]
[1646541688057,183.17,88.399,88.291,23.0983]
[1646541688257,114.5,88.389,88.291,23.0983]
[1646541688459,5.659,88.388,88.291,23.0983]
[1646541688661,114.5,88.386,88.313,53.91697735]
[1646541688858,5.659,88.385,88.313,53.91697735]
[1646541689857,114.5,88.388,88.313,53.91697735]
[1646541690056,5.659,88.387,88.313,53.91697735]
[1646541690357,114.5,88.386,88.313,53.91697735]
[1646541690557,68.67,88.383,88.313,53.91697735]
[1646541690757,114.5,88.38,88.313,53.91697735]
[1646541690960,5.659,88.379,88.313,53.91697735]
[1646541691359,114.5,88.38,88.313,53.91697735]
[1646541691560,5.659,88.388,88.313,53.91697735]
[1646541691758,114.5,88.411,88.313,53.91697735]
[1646541691759,121.68749081,88.409,88.313,53.91697735]
[1646541691959,47.4613,88.408,88.314,47.0447]
[1646541692661,47.4613,88.408,88.315,2.83613526]
[1646541692859,47.4613,88.408,88.315,10.81613526]
[1646541693060,1.52849081,88.427,88.321,114.5]
[1646541693263,1.52849081,88.438,88.33,13.62]
[1646541693461,1.52849081,88.445,88.33,13.62]
[1646541693663,1.52849081,88.446,88.332,48.99035734]
[1646541693860,114.5,88.444,88.332,48.99035734]
[1646541694061,5.656,88.443,88.333,2.83613526]
[1646541694360,5.656,88.443,88.35,16.9728]
[1646541694561,1.52849081,88.445,88.35,30.5928]
[1646541694760,5.656,88.444,88.351,23.764]
[1646541694959,5.656,88.446,88.351,23.764]
[1646541695160,7.18449081,88.446,88.352,54.38003449]
[1646541695362,1.52849081,88.453,88.352,57.21616975]
[1646541695562,1.52849081,88.453,88.36,16.9741]
[1646541695762,1.52849081,88.455,88.36,16.9741]
[1646541696061,114.5,88.46,88.36,16.9741]
[1646541696062,5.655,88.454,88.36,16.9741]
[1646541696264,2.13164284,88.464,88.36,16.9741]
[1646541696265,7.18349081,88.455,88.36,16.9741]
[1646541696463,5.655,88.455,88.361,2.83613526]
[1646541696662,26.39733702,88.483,88.38,16.9688]
[1646541696663,1.52849081,88.456,88.38,16.9688]
[1646541696862,1.52849081,88.458,88.38,23.5988]
[1646541697265,68.67,88.451,88.381,64.25637366]
[1646541697463,114.5,88.45,88.381,64.25637366]
[1646541697667,1.52849081,88.449,88.381,64.25637366]
[1646541697863,116.02849081,88.45,88.381,64.25637366]
[1646541698064,1.52849081,88.458,88.381,72.57637366]
[1646541698365,1.52849081,88.466,88.381,72.57637366]
[1646541698563,1.52849081,88.47,88.381,72.57637366]
[1646541698766,1.52849081,88.473,88.381,72.57637366]
[1646541698965,24.6138,88.484,88.39,16.9687]
[1646541698966,1.52849081,88.471,88.39,16.9687]
[1646541699365,1.52849081,88.472,88.39,16.9687]
[1646541699769,114.5,88.466,88.39,16.9687]
[1646541699967,68.67,88.463,88.381,64.25637366]
[1646541700166,7.18249081,88.462,88.381,64.25637366]
[1646541700367,1.52849081,88.46,88.381,64.25637366]
[1646541700569,1.52849081,88.465,88.381,64.25637366]
[1646541700767,26.40129081,88.467,88.381,64.25637366]
[1646541700967,24.8728,88.467,88.381,64.25637366]
[1646541701169,1.52849081,88.473,88.39,16.969]
[1646541701371,1.97618137,88.492,88.39,30.589]
[1646541701372,114.5,88.482,88.39,30.589]
[1646541701968,1.52849081,88.491,88.39,30.589]
[1646541702171,1.52849081,88.487,88.39,30.589]
[1646541702372,1.52849081,88.486,88.39,30.589]
[1646541703071,1.52849081,88.49,88.39,30.589]
[1646541703472,1.52849081,88.489,88.39,13.62]
[1646541703670,1.52849081,88.489,88.382,48.8882]
[1646541703671,1.52849081,88.48,88.382,48.8882]
[1646541703875,1.52849081,88.472,88.382,48.8882]
[1646541704072,166.4234,88.479,88.382,48.8882]
[1646541704073,1.52849081,88.47,88.382,48.8882]
[1646541704471,1.97618137,88.47,88.382,48.8882]
[1646541704872,1.52849081,88.471,88.382,48.8882]
[1646541705671,1.52849081,88.47,88.382,48.8882]
[1646541705872,1.52849081,88.471,88.382,48.8882]
[1646541706072,1.52849081,88.468,88.382,48.8882]
[1646541706271,1.52849081,88.467,88.382,48.8882]
[1646541706475,1.08521517,88.466,88.382,48.8882]
[1646541706873,1.52849081,88.467,88.382,48.8882]
[1646541707073,1.52849081,88.468,88.382,48.8882]
[1646541707473,1.52849081,88.469,88.382,48.8882]
[1646541708272,1.52849081,88.467,88.382,48.8882]
[1646541708473,114.5,88.466,88.382,48.8882]
[1646541708673,114.5,88.46,88.382,48.8882]
[1646541708872,114.5,88.46,88.381,64.25637366]
[1646541708873,114.5,88.444,88.381,64.25637366]
[1646541709078,1.52849081,88.446,88.381,64.25637366]
[1646541709274,1.97618137,88.465,88.381,64.25637366]
[1646541709275,1.52849081,88.448,88.381,64.25637366]
[1646541709473,1.52849081,88.456,88.381,64.25637366]
[1646541709675,1.52849081,88.459,88.381,64.25637366]
[1646541709874,1.52849081,88.462,88.381,64.25637366]
[1646541710075,1.52849081,88.463,88.381,64.25637366]
[1646541710275,24.2848,88.466,88.381,64.25637366]
[1646541710877,114.5,88.465,88.381,64.25637366]
[1646541711080,183.17,88.461,88.381,64.25637366]
[1646541711289,1.52849081,88.46,88.381,64.25637366]
[1646541711478,1.52849081,88.453,88.381,64.25637366]
[1646541711780,1.52849081,88.455,88.381,64.25637366]
[1646541711978,1.52849081,88.456,88.381,64.25637366]
[1646541712177,1.52849081,88.452,88.381,64.25637366]
[1646541712378,1.52849081,88.449,88.381,64.25637366]
[1646541712781,1.52849081,88.448,88.381,64.25637366]
[1646541713381,114.5,88.43,88.361,24.4124]
[1646541714382,114.5,88.43,88.362,48.94116993]
[1646541714879,120.156,88.432,88.362,48.94116993]
[1646541715081,5.656,88.432,88.362,48.94116993]
[1646541715279,114.5,88.439,88.362,48.94116993]
[1646541715479,116.02849081,88.439,88.362,48.94116993]
[1646541716081,114.5,88.437,88.362,48.94116993]
[1646541716283,5.656,88.436,88.362,48.94116993]
[1646541717084,1.52849081,88.438,88.362,48.94116993]
[1646541717386,1.52849081,88.439,88.362,48.94116993]
[1646541717581,1.52849081,88.449,88.362,48.94116993]
[1646541717782,48.537,88.45,88.362,48.94116993]
[1646541717983,1.52849081,88.446,88.362,48.94116993]
[1646541718385,1.52849081,88.447,88.362,48.94116993]
[1646541718589,1.52849081,88.446,88.362,48.94116993]
[1646541718912,1.1164455,88.445,88.362,48.94116993]
[1646541719083,2.64493631,88.445,88.362,48.94116993]
[1646541719285,183.17,88.441,88.362,48.94116993]
[1646541720485,1.52849081,88.443,88.362,48.94116993]
[1646541720885,114.5,88.439,88.362,48.94116993]
[1646541721086,1.52849081,88.431,88.362,48.94116993]
[1646541721286,114.5,88.429,88.362,48.94116993]
[1646541721685,116.02849081,88.429,88.362,48.94116993]
[1646541721885,114.5,88.429,88.362,48.94116993]
[1646541722286,1.52849081,88.427,88.362,48.94116993]
[1646541722690,1.52849081,88.426,88.362,48.94116993]
[1646541722887,1.52849081,88.425,88.361,24.4124]
[1646541723087,1.52849081,88.421,88.31,13.62]
[1646541723290,1.52849081,88.407,88.316,46.7271]
[1646541723489,116.02849081,88.406,88.316,46.7271]
[1646541723687,1.52849081,88.4,88.316,46.7271]
[1646541723891,2.15888002,88.399,88.317,47.77026687]
[1646541724492,114.5,88.39,88.317,47.77026687]
[1646541725490,114.5,88.389,88.317,47.77026687]
[1646541726591,114.5,88.398,88.317,47.77026687]
[1646541727691,1.52849081,88.404,88.32,16.9814]
[1646541727891,23.4764,88.405,88.32,16.9814]
[1646541728892,183.17,88.399,88.317,47.77026687]
[1646541729091,5.658,88.398,88.317,47.77026687]
[1646541729293,1.52849081,88.392,88.317,47.77026687]
[1646541729491,68.67,88.377,88.317,47.77026687]
[1646541729693,68.67,88.361,88.268,45.5847]
[1646541729895,160.4555,88.36,88.27,16.9906]
[1646541730092,160.4555,88.36,88.268,45.5847]
[1646541730093,167.0155,88.36,88.268,45.5847]
[1646541730293,180.6355,88.36,88.268,45.5847]
[1646541730794,68.67,88.357,88.269,63.85281505]
[1646541730992,37.87638377,88.359,88.269,63.85281505]
[1646541730993,16.9976,88.35,88.269,63.85281505]
[1646541731192,120.16,88.349,88.269,63.85281505]
[1646541731396,114.5,88.349,88.269,63.85281505]
[1646541731592,5.66,88.348,88.269,63.85281505]
[1646541732693,114.5,88.349,88.269,63.85281505]
[1646541732894,13.62,88.35,88.269,63.85281505]
[1646541733194,45.9555,88.36,88.269,66.68895031]
[1646541733395,114.5,88.359,88.27,16.9909]
[1646541734393,45.9555,88.36,88.27,16.9909]
[1646541734596,5.66,88.379,88.29,16.9858]
[1646541734795,128.12,88.38,88.29,16.9858]
[1646541734796,114.5,88.38,88.291,24.7394]
[1646541734998,48.8175,88.419,88.3,13.62]
[1646541734999,5.66,88.411,88.3,13.62]
[1646541735195,1.52849081,88.416,88.3,13.62]
[1646541735196,1.52849081,88.416,88.301,0.51109842]
[1646541735395,48.8175,88.419,88.301,60.0590911]
[1646541735596,114.5,88.418,88.31,16.9825]
[1646541735797,5.658,88.417,88.31,16.9825]
[1646541735999,114.5,88.418,88.311,2.83613526]
[1646541736998,116.47260675,88.418,88.311,2.83613526]
[1646541737799,114.5,88.418,88.321,57.22482877]
[1646541737999,114.5,88.418,88.322,23.2775]
[1646541738198,114.5,88.418,88.322,30.4575]
[1646541739298,114.5,88.418,88.322,23.2775]
[1646541739502,114.5,88.416,88.322,23.2775]
[1646541739900,114.5,88.416,88.33,16.9792]
[1646541740102,48.8175,88.419,88.33,23.3092]
[1646541740301,114.5,88.418,88.33,23.3092]
[1646541741103,114.5,88.418,88.322,23.2775]
[1646541743004,114.5,88.414,88.322,23.2775]
[1646541743204,128.12,88.41,88.322,23.2775]
[1646541743407,3.48474795,88.409,88.322,23.2775]
[1646541743606,68.67,88.401,88.321,57.22482877]
[1646541743804,114.5,88.389,88.321,57.22482877]
[1646541744005,114.5,88.387,88.321,57.22482877]
[1646541745608,114.5,88.394,88.321,57.22482877]
[1646541745808,24.2795,88.395,88.321,57.22482877]
[1646541746811,114.5,88.394,88.321,57.22482877]
[1646541747011,13.62,88.39,88.321,57.22482877]
[1646541748010,13.62,88.39,88.33,16.9793]
[1646541748211,13.62,88.39,88.321,57.22482877]
[1646541748813,114.5,88.389,88.321,57.22482877]
[1646541749027,13.62,88.39,88.321,57.22482877]
[1646541749430,13.62,88.39,88.321,64.27482877]
[1646541749729,136.9785,88.409,88.321,64.27482877]
[1646541749926,114.5,88.409,88.322,24.3234]
[1646541750331,114.5,88.407,88.323,5.658]
[1646541750526,114.5,88.407,88.322,24.3234]
[1646541750728,5.658,88.406,88.322,24.3234]
[1646541750926,116.47260675,88.407,88.322,24.3234]
[1646541751126,114.5,88.405,88.322,24.3234]
[1646541751527,114.5,88.405,88.323,5.658]
[1646541752431,5.658,88.404,88.322,24.3234]
[1646541753330,120.158,88.405,88.322,24.3234]
[1646541753529,114.5,88.405,88.323,5.658]
[1646541754330,23.1805,88.406,88.323,5.658]
[1646541754331,68.67,88.4,88.323,5.658]
[1646541754531,114.5,88.379,88.321,57.22482877]
[1646541754730,114.5,88.369,88.321,57.22482877]
[1646541755131,114.5,88.369,88.282,22.9125]
[1646541755332,114.5,88.367,88.282,22.9125]
[1646541756133,68.67,88.366,88.283,58.31869691]
[1646541756334,114.5,88.349,88.283,58.31869691]
[1646541758032,13.62,88.35,88.283,58.31869691]
[1646541758433,13.62,88.37,88.284,5.66]
[1646541758632,23.8987,88.378,88.284,5.66]
[1646541758833,23.8987,88.378,88.29,16.987]
[1646541759032,23.8987,88.378,88.291,5.66]
[1646541759232,114.5,88.367,88.291,5.66]
[1646541759835,114.5,88.367,88.29,16.987]
[1646541760133,114.5,88.367,88.284,5.66]
[1646541760334,114.5,88.367,88.283,63.97869691]
[1646541760536,114.5,88.367,88.283,58.31869691]
[1646541762540,68.67,88.358,88.283,58.31869691]
[1646541762740,6.0766848,88.352,88.283,58.31869691]
[1646541762942,13.62,88.36,88.283,58.31869691]
[1646541763942,114.5,88.359,88.283,58.31869691]
[1646541765343,114.5,88.355,88.283,58.31869691]
[1646541765545,68.67,88.348,88.283,58.31869691]
[1646541765743,114.5,88.339,88.283,58.31869691]
[1646541766143,114.5,88.329,88.259,23.349]
[1646541766342,114.5,88.319,88.24,5.66]
[1646541766542,114.5,88.319,88.239,23.792]
[1646541766942,114.5,88.319,88.24,25.76082058]